fUSD/lending_fUSD_20240612
["ID","MTS","AMOUNT","RATE_DAILY","PERIOD"]
[329198118,1718171453298,-500.0,0.00019178,2]
[329198119,1718171453316,-1825.27,0.00019178,2]
[329198120,1718171453327,-500.0,0.00019178,2]
[329198121,1718171453337,-1031.37,0.00019178,2]
[329198122,1718171453348,-500.0,0.00019178,2]
[329198123,1718171453359,-500.0,0.00019178,2]
[329198124,1718171453369,-151.0,0.00019178,2]
[329198125,1718171453380,-500.0,0.00019178,2]
[329198126,1718171453390,-500.0,0.00019178,2]
[329198127,1718171453400,-3668.82,0.00019178,2]
[329198128,1718171453411,-500.0,0.00019178,2]
[329198129,1718171453422,-1007.17,0.00019178,2]
[329198130,1718171453432,-547.21,0.00019178,2]
[329198131,1718171453443,-768.62,0.00019178,2]
[329198132,1718171453453,-500.0,0.00019178,2]
[329198133,1718171453464,-2673.16,0.00019178,2]
[329198134,1718171453475,-1673.84,0.00019178,2]
[329198135,1718171453489,-722.51,0.00019178,2]
[329198136,1718171453515,-500.0,0.00019178,2]
[329198137,1718171453525,-151.0,0.00019178,2]
[329198138,1718171453537,-9860.26,0.00019178,2]
[329198139,1718171453548,-500.0,0.00019178,2]
[329198140,1718171453558,-633.42,0.00019178,2]
[329198141,1718171453568,-550.47549192,0.00019178,2]
[329198142,1718171453579,-1057.81,0.00019178,2]
[329198143,1718171453590,-2423.67,0.00019178,2]
[329198144,1718171453601,-151.0,0.00019178,2]
[329198145,1718171453611,-950.84,0.00019178,2]
[329198146,1718171453621,-896.1,0.00019178,2]
[329198147,1718171453633,-500.0,0.00019178,2]
[329198148,1718171453644,-500.0,0.00019178,2]
[329198149,1718171453654,-500.0,0.00019178,2]
[329198150,1718171453664,-2039.03,0.00019178,2]
[329198151,1718171453674,-2127.16,0.00019178,2]
[329198152,1718171453685,-713.21,0.00019178,2]
[329198153,1718171453694,-533.19,0.00019178,2]
[329198154,1718171453706,-3325.32,0.00019178,2]
[329198155,1718171453717,-505.03004979,0.00019178,2]
[329198156,1718171453736,-2674.0,0.00019178,2]
[329198157,1718171453747,-4128.63,0.00019178,2]
[329198158,1718171453761,-1707.88,0.00019178,2]
[329198159,1718171453771,-511.53706851,0.00019178,2]
[329198160,1718171453781,-515.09567894,0.00019178,2]
[329198161,1718171453795,-570.17,0.00019178,2]
[329198162,1718171453807,-1028.39,0.00019178,2]
[329198163,1718171453818,-500.0,0.00019178,2]
[329198164,1718171453828,-500.0,0.00019178,2]
[329198165,1718171453844,-727.65,0.00019178,2]
[329198166,1718171453858,-500.0,0.00019178,2]
[329198167,1718171453879,-700.05,0.00019178,2]
[329198168,1718171453898,-679.42,0.00019178,2]
[329198169,1718171453909,-500.0,0.00019178,2]
[329198170,1718171453920,-500.0,0.00019178,2]
[329198171,1718171453936,-768.85,0.00019178,2]
[329198172,1718171453949,-4622.71,0.00019178,2]
[329198173,1718171453966,-2297.84,0.00019178,2]
[329198174,1718171453980,-500.0,0.00019178,2]
[329198175,1718171453992,-607.82,0.00019178,2]
[329198176,1718171454004,-2368.53,0.00019178,2]
[329198177,1718171454016,-1916.52,0.00019178,2]
[329198178,1718171454028,-500.0,0.00019178,2]
[329198179,1718171454040,-151.0,0.00019178,2]
[329198180,1718171454052,-1984.41,0.00019178,2]
[329198181,1718171454062,-679.36,0.00019178,2]
[329198182,1718171454075,-1477.55,0.00019178,2]
[329198183,1718171454086,-811.47,0.00019178,2]
[329198184,1718171454097,-500.0,0.00019178,2]
[329198185,1718171454108,-833.33,0.00019178,2]
[329198186,1718171454118,-500.0,0.00019178,2]
[329198187,1718171454131,-3834.01,0.00019178,2]
[329198188,1718171454143,-151.0,0.00019178,2]
[329198189,1718171454154,-500.0,0.00019178,2]
[329198190,1718171454179,-500.0,0.00019178,2]
[329198191,1718171454198,-2648.59,0.00019178,2]
[329198192,1718171454212,-459.514807,0.00019178,2]
[329198193,1718171454229,-9338.41,0.00019178,2]
[329198194,1718171454240,-4184.09,0.00019178,2]
[329198195,1718171454251,-2311.2,0.00019178,2]
[329198196,1718171454263,-1924.44,0.00019178,2]
[329198197,1718171454277,-151.0,0.00019178,2]
[329198198,1718171454289,-1631.45,0.00019178,2]
[329198199,1718171454301,-500.0,0.00019178,2]
[329198200,1718171454320,-2104.63,0.00019178,2]
[329198201,1718171454333,-459.514807,0.00019178,2]
[329198202,1718171454344,-717.36,0.00019178,2]
[329198203,1718171454355,-1193.73,0.00019178,2]
[329198204,1718171454380,-500.0,0.00019178,2]
[329198205,1718171454391,-2954.56,0.00019178,2]
[329198206,1718171454411,-1221.52,0.00019178,2]
[329198207,1718171454422,-500.0,0.00019178,2]
[329198208,1718171454433,-500.0,0.00019178,2]
[329198209,1718171454444,-857.22,0.00019178,2]
[329198210,1718171454455,-1628.34,0.00019178,2]
[329198211,1718171454485,-500.0,0.00019178,2]
[329198212,1718171454530,-1419.69,0.00019178,2]
[329198213,1718171454544,-2138.19,0.00019178,2]
[329198214,1718171454555,-775.06,0.00019178,2]
[329198215,1718171454566,-1757.67,0.00019178,2]
[329198216,1718171454577,-500.0,0.00019178,2]
[329198217,1718171454587,-1225.92,0.00019178,2]
[329198218,1718171454598,-771.06,0.00019178,2]
[329198219,1718171454608,-500.0,0.00019178,2]
[329198220,1718171454618,-500.0,0.00019178,2]
[329198221,1718171454629,-500.0,0.00019178,2]
[329198222,1718171454639,-1265.54,0.00019178,2]
[329198223,1718171454649,-554.71,0.00019178,2]
[329198224,1718171454659,-1915.08,0.00019178,2]
[329198225,1718171454670,-1483.8,0.00019178,2]
[329198226,1718171454681,-585.09,0.00019178,2]
[329198227,1718171454694,-500.0,0.00019178,2]
[329198228,1718171454707,-543.43,0.00019178,2]
[329198229,1718171454719,-1408.62,0.00019178,2]
[329198230,1718171454729,-500.0,0.00019178,2]
[329198231,1718171454740,-500.0,0.00019178,2]
[329198232,1718171454751,-1449.95,0.00019178,2]
[329198233,1718171454761,-500.0,0.00019178,2]
[329198234,1718171454772,-2898.41,0.00019178,2]
[329198235,1718171454782,-500.0,0.00019178,2]
[329198236,1718171454794,-944.15,0.00019178,2]
[329198237,1718171454803,-6118.51,0.00019178,2]
[329198238,1718171454815,-633.2,0.00019178,2]
[329198239,1718171454828,-617.0,0.00019178,2]
[329198240,1718171454838,-500.0,0.00019178,2]
[329198241,1718171454849,-2111.99,0.00019178,2]
[329198242,1718171454859,-543.12,0.00019178,2]
[329198243,1718171454870,-1257.99,0.00019178,2]
[329198244,1718171454881,-500.0,0.00019178,2]
[329198245,1718171454892,-151.0,0.00019178,2]
[329198246,1718171454903,-1000.0,0.00019178,2]
[329198247,1718171454914,-1000.0,0.00019178,2]
[329198248,1718171454924,-1000.0,0.00019178,2]
[329198249,1718171454950,-1000.0,0.00019178,2]
[329198250,1718171454963,-1000.0,0.00019178,2]
[329198251,1718171454974,-1000.0,0.00019178,2]
[329198252,1718171455005,-1000.0,0.00019178,2]
[329198253,1718171455031,-1000.0,0.00019178,2]
[329198254,1718171455056,-1000.0,0.00019178,2]
[329198255,1718171455068,-1000.0,0.00019178,2]
[329198256,1718171455092,-1000.0,0.00019178,2]
[329198257,1718171455103,-1000.0,0.00019178,2]
[329198258,1718171455146,-1000.0,0.00019178,2]
[329198259,1718171455167,-1000.0,0.00019178,2]
[329198260,1718171455191,-1000.0,0.00019178,2]
[329198261,1718171455202,-1000.0,0.00019178,2]
[329198262,1718171455215,-1000.0,0.00019178,2]
[329198263,1718171455227,-1000.0,0.00019178,2]
[329198264,1718171455238,-1000.0,0.00019178,2]
[329198265,1718171455252,-1000.0,0.00019178,2]
[329198266,1718171455267,-485.0,0.00019178,2]
[329198267,1718171455283,-200.0,0.00019178,2]
[329198268,1718171455295,-200.0,0.00019178,2]
[329198269,1718171455315,-200.0,0.00019178,2]
[329198270,1718171455326,-200.0,0.00019178,2]
[329198271,1718171455337,-200.0,0.00019178,2]
[329198272,1718171455348,-200.0,0.00019178,2]
[329198273,1718171455359,-178.0,0.00019178,2]
[329198274,1718171455371,-512.05,0.00019178,2]
[329198275,1718171455385,-5133.24,0.00019178,2]
[329198276,1718171455396,-7778.34751165,0.000192,2]
[329198277,1718171455409,-500.0,0.000193,2]
[329198278,1718171455423,-9706.35275249,0.00019315,2]
[329198279,1718171455435,-500.0,0.00019315,2]
[329198280,1718171455449,-500.0,0.00019315,2]
[329198281,1718171455463,-500.0,0.00019315,2]
[329198282,1718171455480,-799.0,0.00019315,2]
[329198283,1718171455510,-500.0,0.00019315,2]
[329198284,1718171455521,-500.0,0.00019315,2]
[329198285,1718171455537,-500.0,0.00019315,2]
[329198286,1718171455577,-500.0,0.00019315,2]
[329198287,1718171455589,-500.0,0.00019315,2]
[329198288,1718171455601,-500.0,0.00019315,2]
[329198289,1718171455622,-500.0,0.00019315,2]
[329198290,1718171455654,-500.0,0.00019315,2]
[329198291,1718171455672,-500.0,0.00019315,2]
[329198292,1718171455696,-500.0,0.00019315,2]
[329198293,1718171455707,-872.0,0.00019315,2]
[329198294,1718171455726,-227.85459993,0.00019315,2]
[329198295,1718171455742,-500.0,0.00019315,2]
[329198296,1718171455926,-500.0,0.00019315,2]
[329198297,1718171455964,-500.0,0.00019315,2]
[329198298,1718171455975,-600.99,0.00019315,2]
[329198299,1718171455987,-500.0,0.00019315,2]
[329198300,1718171455999,-500.0,0.00019315,2]
[329198301,1718171456010,-500.0,0.00019315,2]
[329198302,1718171456021,-500.0,0.00019315,2]
[329198303,1718171456034,-500.0,0.00019315,2]
[329198304,1718171456053,-500.0,0.00019315,2]
[329198305,1718171456067,-500.0,0.00019315,2]
[329198306,1718171456079,-500.0,0.00019315,2]
[329198307,1718171456091,-500.0,0.00019315,2]
[329198308,1718171456102,-500.0,0.00019315,2]
[329198309,1718171456116,-786.27,0.00019315,2]
[329198310,1718171456128,-500.0,0.00019315,2]
[329198311,1718171456139,-500.0,0.00019315,2]
[329198312,1718171456150,-500.0,0.00019315,2]
[329198313,1718171456164,-500.0,0.00019315,2]
[329198314,1718171456187,-500.0,0.00019315,2]
[329198315,1718171456203,-500.0,0.00019315,2]
[329198316,1718171456218,-500.0,0.00019315,2]
[329198317,1718171456230,-500.0,0.00019315,2]
[329198318,1718171456244,-500.0,0.00019315,2]
[329198319,1718171456257,-500.0,0.00019315,2]
[329198320,1718171456294,-853.35,0.00019315,2]
[329198321,1718171456304,-500.0,0.00019315,2]
[329198322,1718171456322,-500.0,0.00019315,2]
[329198323,1718171456334,-500.0,0.00019315,2]
[329198324,1718171456346,-500.0,0.00019315,2]
[329198325,1718171456359,-500.0,0.00019315,2]
[329198326,1718171456369,-641.05974564,0.00019315,2]
[329198327,1718171456381,-411.90941765,0.00019315,2]
[329198328,1718171456396,-500.0,0.00019315,2]
[329198329,1718171456410,-500.0,0.00019315,2]
[329198330,1718171456421,-500.0,0.00019315,2]
[329198331,1718171456431,-500.0,0.00019315,2]
[329198332,1718171456445,-502.27054118,0.00019315,2]
[329198333,1718171456455,-500.0,0.00019315,2]
[329198334,1718171456466,-500.0,0.00019315,2]
[329198335,1718171456476,-336.8495322,0.00019315,2]
[329198336,1718171456502,-500.0,0.00019315,2]
[329198337,1718171456520,-500.0,0.00019315,2]
[329198338,1718171456532,-500.0,0.00019315,2]
[329198339,1718171456548,-500.0,0.00019315,2]
[329198340,1718171456558,-500.0,0.00019315,2]
[329198341,1718171456568,-500.0,0.00019315,2]
[329198342,1718171456579,-500.0,0.00019315,2]
[329198343,1718171456589,-500.0,0.00019315,2]
[329198344,1718171456599,-500.0,0.00019315,2]
[329198345,1718171456611,-500.0,0.00019315,2]
[329198346,1718171456621,-500.0,0.00019315,2]
[329198347,1718171456634,-500.0,0.00019315,2]
[329198348,1718171456644,-589.63,0.00019315,2]
[329198349,1718171456655,-592.59,0.00019315,2]
[329198350,1718171456665,-500.0,0.00019315,2]
[329198351,1718171456676,-500.0,0.00019315,2]
[329198352,1718171456688,-500.0,0.00019315,2]
[329198353,1718171456698,-500.0,0.00019315,2]
[329198354,1718171456709,-500.0,0.00019315,2]
[329198355,1718171456719,-397.08127704,0.00019315,2]
[329198356,1718171456734,-500.0,0.00019315,2]
[329198357,1718171456747,-500.0,0.00019315,2]
[329198358,1718171456758,-500.0,0.00019315,2]
[329198359,1718171456769,-964.8,0.00019315,2]
[329198360,1718171456780,-500.0,0.00019315,2]
[329198361,1718171456790,-500.0,0.00019315,2]
[329198362,1718171456801,-500.0,0.00019315,2]
[329198363,1718171456811,-500.0,0.00019315,2]
[329198364,1718171456821,-500.0,0.00019315,2]
[329198365,1718171456831,-500.0,0.00019315,2]
[329198366,1718171456842,-500.0,0.00019315,2]
[329198367,1718171456852,-543.24955847,0.00019315,2]
[329198368,1718171456862,-500.0,0.00019315,2]
[329198369,1718171456872,-500.0,0.00019315,2]
[329198370,1718171456882,-500.0,0.00019315,2]
[329198371,1718171456892,-500.0,0.00019315,2]
[329198372,1718171456902,-500.0,0.00019315,2]
[329198373,1718171456912,-500.0,0.00019315,2]
[329198374,1718171456923,-527.14,0.00019315,2]
[329198375,1718171456934,-500.0,0.00019315,2]
[329198376,1718171456944,-828.69,0.00019315,2]
[329198377,1718171456954,-1172.78,0.00019315,2]
[329198378,1718171456964,-500.0,0.00019315,2]
[329198379,1718171456974,-500.0,0.00019315,2]
[329198380,1718171456984,-151.0,0.00019315,2]
[329198381,1718171456994,-559.41,0.00019315,2]
[329198382,1718171457004,-500.0,0.00019315,2]
[329198383,1718171457014,-500.0,0.00019315,2]
[329198384,1718171457024,-500.0,0.00019315,2]
[329198385,1718171457034,-500.0,0.00019315,2]
[329198386,1718171457046,-525.08,0.00019315,2]
[329198387,1718171457059,-849.33,0.00019315,2]
[329198388,1718171457069,-521.73,0.00019315,2]
[329198389,1718171457079,-500.0,0.00019315,2]
[329198390,1718171457089,-500.0,0.00019315,2]
[329198391,1718171457099,-535.73,0.00019315,2]
[329198392,1718171457108,-508.84,0.00019315,2]
[329198393,1718171457118,-500.0,0.00019315,2]
[329198394,1718171457130,-501.12,0.00019315,2]
[329198395,1718171457139,-500.0,0.00019315,2]
[329198396,1718171457149,-500.0,0.00019315,2]
[329198397,1718171457158,-500.0,0.00019315,2]
[329198398,1718171457168,-500.0,0.00019315,2]
[329198399,1718171457177,-500.0,0.00019315,2]
[329198400,1718171457187,-739.27,0.00019315,2]
[329198401,1718171457197,-500.0,0.00019315,2]
[329198402,1718171457206,-500.0,0.00019315,2]
[329198403,1718171457216,-500.0,0.00019315,2]
[329198404,1718171457225,-560.13,0.00019315,2]
[329198405,1718171457235,-500.0,0.00019315,2]
[329198406,1718171457244,-591.07,0.00019315,2]
[329198407,1718171457254,-942.68,0.00019315,2]
[329198408,1718171457263,-500.0,0.00019315,2]
[329198409,1718171457272,-500.0,0.00019315,2]
[329198410,1718171457282,-500.0,0.00019315,2]
[329198411,1718171457292,-500.0,0.00019315,2]
[329198412,1718171457301,-3740.07,0.00019315,2]
[329198413,1718171457311,-500.0,0.00019315,2]
[329198414,1718171457320,-902.41,0.00019315,2]
[329198415,1718171457330,-586.12,0.00019315,2]
[329198416,1718171457339,-500.0,0.00019315,2]
[329198417,1718171457348,-506.60950895,0.00019315,2]
[329198418,1718171457358,-1098.59,0.00019315,2]
[329198419,1718171457368,-502.20106549,0.00019315,2]
[329198420,1718171457378,-500.0,0.00019315,2]
[329198421,1718171457388,-609.61,0.00019315,2]
[329198422,1718171457397,-500.0,0.00019315,2]
[329198423,1718171457406,-500.0,0.00019315,2]
[329198424,1718171457416,-598.47,0.00019315,2]
[329198425,1718171457426,-549.58,0.00019315,2]
[329198426,1718171457436,-518.79,0.00019315,2]
[329198427,1718171457446,-500.0,0.00019315,2]
[329198428,1718171457455,-518.54,0.00019315,2]
[329198429,1718171457465,-500.0,0.00019315,2]
[329198430,1718171457475,-500.0,0.00019315,2]
[329198431,1718171457485,-500.0,0.00019315,2]
[329198432,1718171457517,-500.0,0.00019315,2]
[329198433,1718171457526,-500.0,0.00019315,2]
[329198434,1718171457536,-500.0,0.00019315,2]
[329198435,1718171457546,-500.0,0.00019315,2]
[329198436,1718171457555,-500.0,0.00019315,2]
[329198437,1718171457565,-1003.45,0.00019315,2]
[329198438,1718171457575,-527.77,0.00019315,2]
[329198439,1718171457584,-1277.73,0.00019315,2]
[329198440,1718171457594,-500.0,0.00019315,2]
[329198441,1718171457604,-500.0,0.00019315,2]
[329198442,1718171457613,-500.0,0.00019315,2]
[329198443,1718171457623,-646.29,0.00019315,2]
[329198444,1718171457633,-500.0,0.00019315,2]
[329198445,1718171457644,-782.89,0.00019315,2]
[329198446,1718171457654,-525.69,0.00019315,2]
[329198447,1718171457665,-500.0,0.00019315,2]
[329198448,1718171457675,-500.0,0.00019315,2]
[329198449,1718171457685,-500.0,0.00019315,2]
[329198450,1718171457696,-756.09,0.00019315,2]
[329198451,1718171457706,-500.0,0.00019315,2]
[329198452,1718171457716,-500.0,0.00019315,2]
[329198453,1718171457726,-500.0,0.00019315,2]
[329198454,1718171457737,-500.0,0.00019315,2]
[329198455,1718171457747,-554.4,0.00019315,2]
[329198456,1718171457758,-500.0,0.00019315,2]
[329198457,1718171457768,-892.94,0.00019315,2]
[329198458,1718171457779,-881.85,0.00019315,2]
[329198459,1718171457790,-659.91,0.00019315,2]
[329198460,1718171457800,-500.0,0.00019315,2]
[329198461,1718171457810,-500.0,0.00019315,2]
[329198462,1718171457819,-561.75,0.00019315,2]
[329198463,1718171457829,-1066.24,0.00019315,2]
[329198464,1718171457840,-500.0,0.00019315,2]
[329198465,1718171457849,-500.0,0.00019315,2]
[329198466,1718171457860,-151.0,0.00019315,2]
[329198467,1718171457869,-151.0,0.00019315,2]
[329198468,1718171457880,-151.0,0.00019315,2]
[329198469,1718171457890,-500.0,0.00019315,2]
[329198470,1718171457900,-254.121154,0.00019315,2]
[329198471,1718171457910,-540.94,0.00019315,2]
[329198472,1718171457919,-526.61,0.00019315,2]
[329198473,1718171457929,-500.0,0.00019315,2]
[329198474,1718171457940,-170.56,0.00019315,2]
[329198475,1718171457950,-843.12,0.00019315,2]
[329198476,1718171457962,-500.0,0.00019315,2]
[329198477,1718171457972,-500.0,0.00019315,2]
[329198478,1718171457982,-812.26,0.00019315,2]
[329198479,1718171457992,-500.0,0.00019315,2]
[329198480,1718171458003,-500.0,0.00019315,2]
[329198481,1718171458013,-500.0,0.00019315,2]
[329198482,1718171458023,-151.0,0.00019315,2]
[329198483,1718171458032,-151.0,0.00019315,2]
[329198484,1718171458044,-500.0,0.00019315,2]
[329198485,1718171458058,-500.0,0.00019315,2]
[329198486,1718171458067,-500.0,0.00019315,2]
[329198487,1718171458078,-500.0,0.00019315,2]
[329198488,1718171458088,-500.0,0.00019315,2]
[329198489,1718171458099,-500.0,0.00019315,2]
[329198490,1718171458109,-500.0,0.00019315,2]
[329198491,1718171458119,-523.41410854,0.00019315,2]
[329198492,1718171458132,-576.75,0.00019315,2]
[329198493,1718171458143,-619.65,0.00019315,2]
[329198494,1718171458152,-500.0,0.00019315,2]
[329198495,1718171458163,-1004.41,0.00019315,2]
[329198496,1718171458173,-500.0,0.00019315,2]
[329198497,1718171458183,-573.97126388,0.00019315,2]
[329198498,1718171458193,-500.0,0.00019315,2]
[329198499,1718171458203,-500.0,0.00019315,2]
[329198500,1718171458214,-1010.77,0.00019315,2]
[329198501,1718171458224,-500.0,0.00019315,2]
[329198502,1718171458234,-500.0,0.00019315,2]
[329198503,1718171458244,-500.0,0.00019315,2]
[329198504,1718171458254,-500.0,0.00019315,2]
[329198505,1718171458264,-500.0,0.00019315,2]
[329198506,1718171458274,-500.0,0.00019315,2]
[329198507,1718171458285,-500.0,0.00019315,2]
[329198508,1718171458296,-151.0,0.00019315,2]
[329198509,1718171458307,-500.0,0.00019315,2]
[329198510,1718171458317,-500.0,0.00019315,2]
[329198511,1718171458327,-500.0,0.00019315,2]
[329198512,1718171458337,-525.29,0.00019315,2]
[329198513,1718171458347,-500.0,0.00019315,2]
[329198514,1718171458357,-661.97,0.00019315,2]
[329198515,1718171458367,-500.0,0.00019315,2]
[329198516,1718171458377,-500.0,0.00019315,2]
[329198517,1718171458386,-500.0,0.00019315,2]
[329198518,1718171458397,-731.99,0.00019315,2]
[329198519,1718171458406,-500.0,0.00019315,2]
[329198520,1718171458416,-500.0,0.00019315,2]
[329198521,1718171458426,-500.0,0.00019315,2]
[329198522,1718171458436,-515.28,0.00019315,2]
[329198523,1718171458446,-551.4,0.00019315,2]
[329198524,1718171458456,-500.0,0.00019315,2]
[329198525,1718171458466,-500.0,0.00019315,2]
[329198526,1718171458476,-982.59,0.00019315,2]
[329198527,1718171458486,-500.0,0.00019315,2]
[329198528,1718171458510,-500.0,0.00019315,2]
[329198529,1718171458520,-500.0,0.00019315,2]
[329198530,1718171458531,-500.0,0.00019315,2]
[329198531,1718171458542,-500.0,0.00019315,2]
[329198532,1718171458552,-500.0,0.00019315,2]
[329198533,1718171458563,-500.0,0.00019315,2]
[329198534,1718171458573,-500.0,0.00019315,2]
[329198535,1718171458583,-1435.04,0.00019315,2]
[329198536,1718171458594,-500.0,0.00019315,2]
[329198537,1718171458604,-539.51,0.00019315,2]
[329198538,1718171458677,-500.0,0.00019315,2]
[329198539,1718171458687,-500.0,0.00019315,2]
[329198540,1718171458697,-500.0,0.00019315,2]
[329198541,1718171458708,-789.06,0.00019315,2]
[329198542,1718171458720,-500.0,0.00019315,2]
[329198543,1718171458739,-500.0,0.00019315,2]
[329198544,1718171458758,-500.0,0.00019315,2]
[329198545,1718171458769,-500.0,0.00019315,2]
[329198546,1718171458780,-151.0,0.00019315,2]
[329198547,1718171458791,-896.19,0.00019315,2]
[329198548,1718171458803,-500.0,0.00019315,2]
[329198549,1718171458815,-500.0,0.00019315,2]
[329198550,1718171458824,-500.0,0.00019315,2]
[329198551,1718171458834,-500.0,0.00019315,2]
[329198552,1718171458845,-151.632995,0.00019315,2]
[329198553,1718171458855,-774.46,0.00019315,2]
[329198554,1718171458867,-151.632995,0.00019315,2]
[329198555,1718171458881,-500.0,0.00019315,2]
[329198556,1718171458891,-151.632995,0.00019315,2]
[329198557,1718171458901,-3083.55,0.00019315,2]
[329198558,1718171458914,-151.632995,0.00019315,2]
[329198559,1718171458925,-500.0,0.00019315,2]
[329198560,1718171458936,-500.0,0.00019315,2]
[329198561,1718171458946,-500.0,0.00019315,2]
[329198562,1718171458958,-1015.78,0.00019315,2]
[329198563,1718171458968,-500.0,0.00019315,2]
[329198564,1718171458979,-668.34,0.00019315,2]
[329198565,1718171458988,-151.0,0.00019315,2]
[329198566,1718171458998,-151.0,0.00019315,2]
[329198567,1718171459009,-500.0,0.00019315,2]
[329198568,1718171459019,-500.0,0.00019315,2]
[329198569,1718171459029,-500.0,0.00019315,2]
[329198570,1718171459040,-202.25837999,0.00019315,2]
[329198571,1718171459052,-500.0,0.00019315,2]
[329198572,1718171459063,-151.0,0.00019315,2]
[329198573,1718171459075,-151.0,0.00019315,2]
[329198574,1718171459085,-3778.45,0.00019315,2]
[329198575,1718171459097,-500.0,0.00019315,2]
[329198576,1718171459107,-6443.67,0.00019315,2]
[329198577,1718171459117,-4985.71,0.00019315,2]
[329198578,1718171459130,-2108.66,0.00019315,2]
[329198579,1718171459143,-562.69,0.00019315,2]
[329198580,1718171459153,-500.0,0.00019315,2]
[329198581,1718171459164,-4059.36,0.00019315,2]
[329198582,1718171459174,-3732.86,0.00019315,2]
[329198583,1718171459185,-1947.2,0.00019315,2]
[329198584,1718171459195,-685.03,0.00019315,2]
[329198585,1718171459205,-500.0,0.00019315,2]
[329198586,1718171459215,-500.0,0.00019315,2]
[329198587,1718171459225,-541.38,0.00019315,2]
[329198588,1718171459235,-500.0,0.00019315,2]
[329198589,1718171459245,-659.8,0.00019315,2]
[329198590,1718171459256,-895.92,0.00019315,2]
[329198591,1718171459266,-500.0,0.00019315,2]
[329198592,1718171459276,-542.78996816,0.00019315,2]
[329198593,1718171459286,-500.0,0.00019315,2]
[329198594,1718171459298,-921.13,0.00019315,2]
[329198595,1718171459308,-500.0,0.00019315,2]
[329198596,1718171459320,-1209.81,0.00019315,2]
[329198597,1718171459330,-1084.12,0.00019315,2]
[329198598,1718171459341,-500.0,0.00019315,2]
[329198599,1718171459351,-2213.64,0.00019315,2]
[329198600,1718171459362,-500.0,0.00019315,2]
[329198601,1718171459371,-819.89,0.00019315,2]
[329198602,1718171459382,-1043.26,0.00019315,2]
[329198603,1718171459392,-500.0,0.00019315,2]
[329198604,1718171459402,-500.0,0.00019315,2]
[329198605,1718171459412,-712.46,0.00019315,2]
[329198606,1718171459423,-500.0,0.00019315,2]
[329198607,1718171459433,-9777.79,0.00019315,2]
[329198608,1718171459443,-14047.18,0.00019315,2]
[329198609,1718171459454,-1217.13,0.00019315,2]
[329198610,1718171459464,-151.0,0.00019315,2]
[329198611,1718171459474,-779.47,0.00019315,2]
[329198612,1718171459491,-151.0,0.00019315,2]
[329198613,1718171459516,-934.5,0.00019315,2]
[329198614,1718171459528,-1736.56,0.00019315,2]
[329198615,1718171459540,-1293.07,0.00019315,2]
[329198616,1718171459550,-652.94,0.00019315,2]
[329198617,1718171459560,-500.0,0.00019315,2]